[Event "*** Qualifier 1: Titled Tuesday 3|2 Blitz"]
[Site "Chess.com"]
[Date "2017.04.04"]
[Round "3"]
[White "fastestmindalive"]
[Black "iturrizaga"]
[Result "0-1"]
[WhiteElo "2423"]
[BlackElo "2646"]
[TimeControl "180+2"]
[EndTime "13:38:02 PDT"]
[Termination "iturrizaga won by resignation"]

1. e4 {[%clk 0:03:01.9]} 1... c5 {[%clk 0:03:00.7]} 2. Nc3 {[%clk 0:03:02.4]}
2... Nc6 {[%clk 0:02:57.6]} 3. Bb5 {[%clk 0:03:03]} 3... Nd4 {[%clk 0:02:57.8]}
4. Nf3 {[%clk 0:03:04.2]} 4... Qc7 {[%clk 0:02:54.1]} 5. O-O {[%clk 0:03:01.3]}
5... e6 {[%clk 0:02:52.9]} 6. Nxd4 {[%clk 0:02:49.9]} 6... cxd4 {[%clk
0:02:54.8]} 7. Ne2 {[%clk 0:02:51.2]} 7... Ne7 {[%clk 0:02:50.4]} 8. c3 {[%clk
0:02:50.4]} 8... a6 {[%clk 0:02:46.2]} 9. Bd3 {[%clk 0:02:47]} 9... dxc3 {[%clk
0:02:46.4]} 10. dxc3 {[%clk 0:02:47.7]} 10... Nc6 {[%clk 0:02:44.9]} 11. Bf4
{[%clk 0:02:47.9]} 11... Ne5 {[%clk 0:02:24.8]} 12. Bxe5 {[%clk 0:02:38.1]}
12... Qxe5 {[%clk 0:02:25.1]} 13. f4 {[%clk 0:02:39.3]} 13... Qc7 {[%clk
0:02:23.8]} 14. Ng3 {[%clk 0:02:25]} 14... h5 {[%clk 0:01:52.7]} 15. e5 {[%clk
0:02:04.3]} 15... h4 {[%clk 0:01:50.9]} 16. Ne4 {[%clk 0:02:04.3]} 16... b6
{[%clk 0:01:37.7]} 17. Be2 {[%clk 0:01:53.8]} 17... Bb7 {[%clk 0:01:34.1]} 18.
Bf3 {[%clk 0:01:54.7]} 18... Rd8 {[%clk 0:01:28.5]} 19. Nd6+ {[%clk 0:01:29]}
19... Bxd6 {[%clk 0:01:28.5]} 20. Qxd6 {[%clk 0:01:30.9]} 20... Qxd6 {[%clk
0:01:26]} 21. exd6 {[%clk 0:01:32.8]} 21... Bxf3 {[%clk 0:01:25.7]} 22. Rxf3
{[%clk 0:01:34.7]} 22... Rh5 {[%clk 0:01:26.5]} 23. Rd1 {[%clk 0:01:34.6]} 23...
Rc8 {[%clk 0:01:26.2]} 24. Rd4 {[%clk 0:01:32.3]} 24... f6 {[%clk 0:01:24.2]}
25. Kf2 {[%clk 0:01:27.6]} 25... Kf7 {[%clk 0:01:25.1]} 26. Rh3 {[%clk
0:01:14.8]} 26... Rcc5 {[%clk 0:01:22]} 27. Ke2 {[%clk 0:01:11.8]} 27... a5
{[%clk 0:01:02.2]} 28. a4 {[%clk 0:01:08]} 28... Rc6 {[%clk 0:01:01.8]} 29. g4
{[%clk 0:01:00.9]} 29... Rh8 {[%clk 0:00:44.3]} 30. Kd2 {[%clk 0:01:00.3]} 30...
e5 {[%clk 0:00:35.6]} 31. fxe5 {[%clk 0:00:34.1]} 31... fxe5 {[%clk 0:00:37.5]}
32. Rd5 {[%clk 0:00:27.6]} 32... Ke6 {[%clk 0:00:38.5]} 33. Rhd3 {[%clk
0:00:28.7]} 33... Rf8 {[%clk 0:00:39.6]} 34. Rb5 {[%clk 0:00:24]} 34... Rf2+
{[%clk 0:00:38.3]} 35. Ke1 {[%clk 0:00:23.6]} 35... Rxh2 {[%clk 0:00:33.6]} 36.
Rdd5 {[%clk 0:00:24]} 36... Rc5 {[%clk 0:00:33.1]} 37. Rdxc5 {[%clk 0:00:16.7]}
37... bxc5 {[%clk 0:00:35]} 38. Kf1 {[%clk 0:00:17.8]} 38... Kxd6 {[%clk
0:00:29.3]} 39. c4 {[%clk 0:00:16.7]} 39... e4 {[%clk 0:00:27.9]} 40. Rxa5
{[%clk 0:00:16.6]} 40... Rxb2 {[%clk 0:00:26.8]} 0-1

[Event "*** Qualifier 1: Titled Tuesday 3|2 Blitz"]
[Site "Chess.com"]
[Date "2017.04.04"]
[Round "3"]
[White "keisyzrk"]
[Black "PowerThinking2650"]
[Result "1-0"]
[WhiteElo "2243"]
[BlackElo "2162"]
[TimeControl "180+2"]
[EndTime "13:38:04 PDT"]
[Termination "keisyzrk won by resignation"]

1. d4 {[%clk 0:03:02]} 1... Nf6 {[%clk 0:02:59.8]} 2. c4 {[%clk 0:03:03.3]} 2...
g6 {[%clk 0:03:00.6]} 3. Nc3 {[%clk 0:03:03.7]} 3... Bg7 {[%clk 0:03:02.1]} 4.
e4 {[%clk 0:03:04.8]} 4... O-O {[%clk 0:03:03.5]} 5. Bd3 {[%clk 0:03:06.4]} 5...
d6 {[%clk 0:03:03.8]} 6. Nge2 {[%clk 0:03:07.5]} 6... Nc6 {[%clk 0:03:04.9]} 7.
O-O {[%clk 0:03:06.7]} 7... e5 {[%clk 0:03:05.8]} 8. d5 {[%clk 0:03:07.5]} 8...
Nd4 {[%clk 0:03:07.2]} 9. Nxd4 {[%clk 0:02:38.4]} 9... exd4 {[%clk 0:03:08.1]}
10. Ne2 {[%clk 0:02:40]} 10... Re8 {[%clk 0:03:09.2]} 11. f3 {[%clk 0:02:22]}
11... c5 {[%clk 0:03:08.3]} 12. Bg5 {[%clk 0:02:20.2]} 12... h6 {[%clk
0:03:01.3]} 13. Bh4 {[%clk 0:02:21.2]} 13... g5 {[%clk 0:02:57.6]} 14. Bg3
{[%clk 0:02:19.2]} 14... a6 {[%clk 0:02:46.7]} 15. b4 {[%clk 0:02:07.4]} 15...
b5 {[%clk 0:02:42.5]} 16. bxc5 {[%clk 0:02:04.6]} 16... bxc4 {[%clk 0:02:26.9]}
17. Bxc4 {[%clk 0:02:05.5]} 17... dxc5 {[%clk 0:02:28]} 18. Nc1 {[%clk
0:01:54.9]} 18... Nh5 {[%clk 0:02:25.7]} 19. Nd3 {[%clk 0:01:46.2]} 19... Nxg3
{[%clk 0:02:22.9]} 20. hxg3 {[%clk 0:01:48.1]} 20... f5 {[%clk 0:02:20.9]} 21.
exf5 {[%clk 0:01:33.6]} 21... Bxf5 {[%clk 0:02:20.7]} 22. f4 {[%clk 0:01:34.8]}
22... g4 {[%clk 0:02:05.8]} 23. Rc1 {[%clk 0:01:17.5]} 23... Re3 {[%clk
0:01:59.8]} 24. Nxc5 {[%clk 0:01:05.6]} 24... Rxg3 {[%clk 0:01:49.6]} 25. Ne6
{[%clk 0:01:01.4]} 25... Bxe6 {[%clk 0:01:46.4]} 26. dxe6 {[%clk 0:01:02.6]}
26... Qe7 {[%clk 0:01:35.6]} 27. f5 {[%clk 0:01:03.8]} 27... d3 {[%clk
0:01:22.5]} 28. Rf4 {[%clk 0:00:56.1]} 28... Rd8 {[%clk 0:00:59.3]} 29. f6
{[%clk 0:00:55.1]} 29... Bxf6 {[%clk 0:00:50.9]} 30. Rxf6 {[%clk 0:00:56.2]}
30... d2 {[%clk 0:00:21.2]} 31. Rc2 {[%clk 0:00:52.5]} 31... Rd4 {[%clk
0:00:17]} 32. Bb3 {[%clk 0:00:42.4]} 32... Re4 {[%clk 0:00:12.4]} 33. Qxd2
{[%clk 0:00:35.1]} 33... Qxf6 {[%clk 0:00:12.7]} 34. Rc8+ {[%clk 0:00:28.7]}
34... Kg7 {[%clk 0:00:13.1]} 35. Rc7+ {[%clk 0:00:28.6]} 35... Kg6 {[%clk
0:00:12.2]} 36. Bc2 {[%clk 0:00:26.9]} 36... Qe5 {[%clk 0:00:12.1]} 37. e7
{[%clk 0:00:24.5]} 37... Re3 {[%clk 0:00:09.7]} 38. Qxe3 {[%clk 0:00:25.2]}
38... Qxc7 {[%clk 0:00:08.7]} 39. e8=Q+ {[%clk 0:00:25.5]} 39... Kg7 {[%clk
0:00:08.3]} 40. Q8xe4 {[%clk 0:00:20.9]} 1-0

[Event "*** Qualifier 1: Titled Tuesday 3|2 Blitz"]
[Site "Chess.com"]
[Date "2017.04.04"]
[Round "3"]
[White "Zhani-Z"]
[Black "AmazingAtlas"]
[Result "1-0"]
[WhiteElo "2383"]
[BlackElo "2288"]
[TimeControl "180+2"]
[EndTime "13:38:05 PDT"]
[Termination "Zhani-Z won by resignation"]

1. e4 {[%clk 0:03:02]} 1... c5 {[%clk 0:03:00.3]} 2. Nf3 {[%clk 0:03:00.4]} 2...
Nc6 {[%clk 0:03:00.7]} 3. Bb5 {[%clk 0:02:59.9]} 3... d6 {[%clk 0:02:59.3]} 4.
O-O {[%clk 0:03:00.5]} 4... Bd7 {[%clk 0:02:58.2]} 5. Re1 {[%clk 0:02:57.1]}
5... Nf6 {[%clk 0:02:56.3]} 6. h3 {[%clk 0:02:51.8]} 6... g6 {[%clk 0:02:39.8]}
7. c3 {[%clk 0:02:47.6]} 7... Ne5 {[%clk 0:02:37.9]} 8. Bxd7+ {[%clk 0:02:38.6]}
8... Nfxd7 {[%clk 0:02:32.8]} 9. d4 {[%clk 0:02:35.8]} 9... Nxf3+ {[%clk
0:02:28.9]} 10. Qxf3 {[%clk 0:02:35.9]} 10... Bg7 {[%clk 0:02:27.4]} 11. d5
{[%clk 0:02:03.6]} 11... b5 {[%clk 0:01:37.1]} 12. a4 {[%clk 0:01:30.5]} 12...
a6 {[%clk 0:01:37.3]} 13. Na3 {[%clk 0:01:26]} 13... Qb6 {[%clk 0:01:29.2]} 14.
Qe2 {[%clk 0:01:20.4]} 14... O-O {[%clk 0:01:28.1]} 15. Bg5 {[%clk 0:01:18.8]}
15... f6 {[%clk 0:01:00.3]} 16. Be3 {[%clk 0:01:14.6]} 16... Rab8 {[%clk
0:00:59.2]} 17. axb5 {[%clk 0:01:14.7]} 17... axb5 {[%clk 0:00:59.9]} 18. c4
{[%clk 0:01:00.2]} 18... bxc4 {[%clk 0:00:55.4]} 19. Nxc4 {[%clk 0:01:01]} 19...
Qb4 {[%clk 0:00:52.6]} 20. Bd2 {[%clk 0:00:59.7]} 20... Qb3 {[%clk 0:00:46.7]}
21. Ra3 {[%clk 0:00:59.5]} 21... Qb7 {[%clk 0:00:46.6]} 22. Bc3 {[%clk
0:00:54.2]} 22... Nb6 {[%clk 0:00:43.8]} 23. Na5 {[%clk 0:00:54.6]} 23... Qc7
{[%clk 0:00:40.3]} 24. Rea1 {[%clk 0:00:44.9]} 24... Ra8 {[%clk 0:00:40.2]} 25.
Nc6 {[%clk 0:00:45.1]} 25... c4 {[%clk 0:00:40.4]} 26. Bd4 {[%clk 0:00:42.2]}
26... Rxa3 {[%clk 0:00:34.2]} 27. Rxa3 {[%clk 0:00:42.5]} 27... f5 {[%clk
0:00:35.3]} 28. Ra7 {[%clk 0:00:38.8]} 28... Qxa7 {[%clk 0:00:30.7]} 29. Nxa7
{[%clk 0:00:39.3]} 29... Bxd4 {[%clk 0:00:32.3]} 30. Nc6 {[%clk 0:00:39.8]}
30... Bc5 {[%clk 0:00:31.8]} 31. e5 {[%clk 0:00:40]} 31... Nxd5 {[%clk 0:00:28]}
32. exd6 {[%clk 0:00:40.1]} 32... Bxd6 {[%clk 0:00:26.4]} 33. Qe6+ {[%clk
0:00:40.1]} 33... Kg7 {[%clk 0:00:24.8]} 34. Qxd5 {[%clk 0:00:41.1]} 34... Ra8
{[%clk 0:00:20.8]} 35. g3 {[%clk 0:00:40]} 35... Ra1+ {[%clk 0:00:21]} 36. Kg2
{[%clk 0:00:40.6]} 36... Rc1 {[%clk 0:00:22.9]} 37. Qd2 {[%clk 0:00:34.5]} 37...
Rb1 {[%clk 0:00:21.1]} 38. Qc2 {[%clk 0:00:35.3]} 38... Re1 {[%clk 0:00:21.4]}
39. Qc3+ {[%clk 0:00:35.5]} 1-0

[Event "*** Qualifier 1: Titled Tuesday 3|2 Blitz"]
[Site "Chess.com"]
[Date "2017.04.04"]
[Round "3"]
[White "michaelk123"]
[Black "MyleneFarmer"]
[Result "1-0"]
[WhiteElo "2203"]
[BlackElo "2325"]
[TimeControl "180+2"]
[EndTime "13:38:09 PDT"]
[Termination "michaelk123 won on time"]

1. d4 {[%clk 0:03:02]} 1... Nf6 {[%clk 0:02:59.7]} 2. Nf3 {[%clk 0:03:01.1]}
2... c5 {[%clk 0:02:59.4]} 3. d5 {[%clk 0:02:45.8]} 3... b5 {[%clk 0:02:59.4]}
4. c4 {[%clk 0:02:40.2]} 4... e6 {[%clk 0:02:43.6]} 5. a4 {[%clk 0:02:33.4]}
5... exd5 {[%clk 0:02:28.4]} 6. cxd5 {[%clk 0:02:33.7]} 6... Bb7 {[%clk
0:02:21.7]} 7. e4 {[%clk 0:02:26.2]} 7... Nxe4 {[%clk 0:02:03]} 8. Bxb5 {[%clk
0:02:26.6]} 8... Bd6 {[%clk 0:01:59.5]} 9. Nc3 {[%clk 0:02:18.7]} 9... Nxc3
{[%clk 0:01:57.5]} 10. bxc3 {[%clk 0:02:18.4]} 10... O-O {[%clk 0:01:55.5]} 11.
O-O {[%clk 0:02:18.2]} 11... Na6 {[%clk 0:01:55.4]} 12. Bg5 {[%clk 0:02:10.4]}
12... Qc7 {[%clk 0:01:46.9]} 13. Qd3 {[%clk 0:02:08.3]} 13... c4 {[%clk
0:01:37.9]} 14. Qxc4 {[%clk 0:02:04.9]} 14... Qxc4 {[%clk 0:01:38.6]} 15. Bxc4
{[%clk 0:02:06.8]} 15... Rac8 {[%clk 0:01:40.1]} 16. Nd2 {[%clk 0:02:02.7]}
16... Nc5 {[%clk 0:01:07.3]} 17. Be3 {[%clk 0:01:40.1]} 17... Rc7 {[%clk
0:00:56.9]} 18. a5 {[%clk 0:01:31.8]} 18... a6 {[%clk 0:00:37.4]} 19. Rfb1
{[%clk 0:01:30.6]} 19... Rfc8 {[%clk 0:00:33.3]} 20. Rb6 {[%clk 0:01:31.5]}
20... Be5 {[%clk 0:00:15.5]} 21. Bd4 {[%clk 0:00:56.5]} 21... Bxd4 {[%clk
0:00:15.5]} 22. cxd4 {[%clk 0:00:57.7]} 22... Ne4 {[%clk 0:00:16]} 23. Nxe4
{[%clk 0:00:48.1]} 23... Rxc4 {[%clk 0:00:16.9]} 24. h4 {[%clk 0:00:33.5]} 24...
Bxd5 {[%clk 0:00:16.3]} 25. Nd6 {[%clk 0:00:33.7]} 25... Rc1+ {[%clk 0:00:17.3]}
26. Rxc1 {[%clk 0:00:34.1]} 26... Rxc1+ {[%clk 0:00:19.2]} 27. Kh2 {[%clk
0:00:35.5]} 27... h5 {[%clk 0:00:16.5]} 28. Rxa6 {[%clk 0:00:33.3]} 28... Rd1
{[%clk 0:00:12.2]} 29. Nf5 {[%clk 0:00:34.2]} 29... Bc4 {[%clk 0:00:10.8]} 30.
Rd6 {[%clk 0:00:32.4]} 30... Be6 {[%clk 0:00:10.8]} 31. Ne3 {[%clk 0:00:32.5]}
31... Ra1 {[%clk 0:00:11]} 32. a6 {[%clk 0:00:33.6]} 32... Kf8 {[%clk
0:00:11.8]} 33. d5 {[%clk 0:00:33.6]} 33... Ke7 {[%clk 0:00:12.7]} 34. Rb6
{[%clk 0:00:34.5]} 34... Bg4 {[%clk 0:00:13.6]} 35. f3 {[%clk 0:00:35.9]} 35...
Ra3 {[%clk 0:00:14.3]} 36. Nc2 {[%clk 0:00:26.8]} 36... Ra2 {[%clk 0:00:15]} 37.
Nd4 {[%clk 0:00:28]} 37... g5 {[%clk 0:00:07.2]} 38. fxg4 {[%clk 0:00:27.9]}
38... gxh4 {[%clk 0:00:08.6]} 39. gxh5 {[%clk 0:00:28.9]} 39... Ra4 {[%clk
0:00:08.3]} 40. Nf5+ {[%clk 0:00:29.4]} 1-0

[Event "*** Qualifier 1: Titled Tuesday 3|2 Blitz"]
[Site "Chess.com"]
[Date "2017.04.04"]
[Round "3"]
[White "agser"]
[Black "ka1ser64"]
[Result "1-0"]
[WhiteElo "2618"]
[BlackElo "2330"]
[TimeControl "180+2"]
[EndTime "13:38:16 PDT"]
[Termination "agser won by resignation"]

1. Nf3 {[%clk 0:03:02]} 1... d5 {[%clk 0:02:53.8]} 2. g3 {[%clk 0:03:02.1]} 2...
Nf6 {[%clk 0:02:54.8]} 3. Bg2 {[%clk 0:03:03.5]} 3... e6 {[%clk 0:02:55.9]} 4.
c4 {[%clk 0:03:04.8]} 4... Be7 {[%clk 0:02:57.6]} 5. O-O {[%clk 0:03:06]} 5...
O-O {[%clk 0:02:58.9]} 6. d4 {[%clk 0:03:07.2]} 6... dxc4 {[%clk 0:03:00.1]} 7.
Ne5 {[%clk 0:03:08.6]} 7... Nc6 {[%clk 0:03:00.7]} 8. Bxc6 {[%clk 0:03:10.3]}
8... bxc6 {[%clk 0:03:01.9]} 9. Nxc6 {[%clk 0:03:12.2]} 9... Qe8 {[%clk
0:03:03.4]} 10. Nxe7+ {[%clk 0:03:14.1]} 10... Qxe7 {[%clk 0:03:05]} 11. Na3
{[%clk 0:03:16]} 11... c5 {[%clk 0:03:05]} 12. dxc5 {[%clk 0:03:16.5]} 12...
Qxc5 {[%clk 0:03:05]} 13. Be3 {[%clk 0:03:18.1]} 13... Qh5 {[%clk 0:03:05.2]}
14. f3 {[%clk 0:03:17.2]} 14... e5 {[%clk 0:03:04.2]} 15. Nxc4 {[%clk
0:03:16.7]} 15... Be6 {[%clk 0:03:01.9]} 16. Rc1 {[%clk 0:03:02.8]} 16... e4
{[%clk 0:02:54]} 17. Qd6 {[%clk 0:02:49.4]} 17... Rfd8 {[%clk 0:02:49.3]} 18.
Qe5 {[%clk 0:02:28.3]} 18... Qxe5 {[%clk 0:02:43]} 19. Nxe5 {[%clk 0:02:30.2]}
19... Bxa2 {[%clk 0:02:30.7]} 20. Ra1 {[%clk 0:02:30.1]} 20... Be6 {[%clk
0:02:21.7]} 21. Bxa7 {[%clk 0:02:10.1]} 21... Rd2 {[%clk 0:02:18.7]} 22. Be3
{[%clk 0:02:09.2]} 22... Rdd8 {[%clk 0:01:57.3]} 23. b4 {[%clk 0:02:02.5]} 23...
h6 {[%clk 0:01:52.4]} 24. b5 {[%clk 0:01:55.2]} 24... Nd5 {[%clk 0:01:34.3]} 25.
Bd4 {[%clk 0:01:08.2]} 25... Rxa1 {[%clk 0:00:40.4]} 26. Rxa1 {[%clk 0:01:05.5]}
26... Rb8 {[%clk 0:00:39.2]} 27. fxe4 {[%clk 0:00:57.2]} 27... Nf6 {[%clk
0:00:39.9]} 28. b6 {[%clk 0:00:53]} 28... Nxe4 {[%clk 0:00:41]} 29. Nc6 {[%clk
0:00:53.3]} 29... Rb7 {[%clk 0:00:36.8]} 30. Ra7 {[%clk 0:00:48.3]} 30... Nd6
{[%clk 0:00:26.2]} 31. Bc5 {[%clk 0:00:47.8]} 31... Bd5 {[%clk 0:00:23.9]} 32.
Ne7+ {[%clk 0:00:45.4]} 32... Rxe7 {[%clk 0:00:13.7]} 33. Rxe7 {[%clk
0:00:47.3]} 33... Nb7 {[%clk 0:00:13.3]} 34. Rd7 {[%clk 0:00:47]} 34... Be4
{[%clk 0:00:14.3]} 35. Bd4 {[%clk 0:00:42.8]} 35... g5 {[%clk 0:00:15]} 36. Kf2
{[%clk 0:00:41.7]} 36... h5 {[%clk 0:00:15.6]} 37. Ke3 {[%clk 0:00:43]} 37...
Bg2 {[%clk 0:00:15.5]} 38. Kd3 {[%clk 0:00:44.7]} 38... g4 {[%clk 0:00:14.4]}
39. e4 {[%clk 0:00:45.8]} 39... Bf1+ {[%clk 0:00:10.8]} 40. Ke3 {[%clk
0:00:41.8]} 40... Ba6 {[%clk 0:00:10.8]} 41. Kf4 {[%clk 0:00:41.9]} 41... Kf8
{[%clk 0:00:10.7]} 42. Bf6 {[%clk 0:00:39.5]} 42... Ke8 {[%clk 0:00:10.9]} 43.
Re7+ {[%clk 0:00:39.9]} 43... Kf8 {[%clk 0:00:12]} 44. Rc7 {[%clk 0:00:41.2]}
44... Ke8 {[%clk 0:00:13.1]} 45. e5 {[%clk 0:00:41]} 45... Na5 {[%clk
0:00:11.7]} 46. Re7+ {[%clk 0:00:39.2]} 46... Kf8 {[%clk 0:00:12.1]} 47. Ra7
{[%clk 0:00:41.1]} 1-0

[Event "*** Qualifier 1: Titled Tuesday 3|2 Blitz"]
[Site "Chess.com"]
[Date "2017.04.04"]
[Round "3"]
[White "AnkitGajwa"]
[Black "Wolverine_master"]
[Result "1-0"]
[WhiteElo "1776"]
[BlackElo "1969"]
[TimeControl "180+2"]
[EndTime "13:38:16 PDT"]
[Termination "AnkitGajwa won by checkmate"]

1. e4 {[%clk 0:03:02]} 1... d5 {[%clk 0:03:00.4]} 2. exd5 {[%clk 0:03:00.5]}
2... Qxd5 {[%clk 0:03:02.3]} 3. Nc3 {[%clk 0:03:00.8]} 3... Qd6 {[%clk
0:03:03.5]} 4. Nf3 {[%clk 0:02:59.4]} 4... Nf6 {[%clk 0:03:05]} 5. g3 {[%clk
0:02:59.2]} 5... Bg4 {[%clk 0:02:59.4]} 6. Bg2 {[%clk 0:02:57.3]} 6... a6 {[%clk
0:03:00.4]} 7. O-O {[%clk 0:02:57.4]} 7... Nc6 {[%clk 0:03:01.9]} 8. h3 {[%clk
0:02:57]} 8... Bh5 {[%clk 0:03:02.4]} 9. d4 {[%clk 0:02:56.5]} 9... O-O-O {[%clk
0:03:02.6]} 10. Bf4 {[%clk 0:02:57.1]} 10... Qd7 {[%clk 0:02:41.7]} 11. g4
{[%clk 0:02:55.5]} 11... Bg6 {[%clk 0:02:21.8]} 12. Ne5 {[%clk 0:02:09.7]} 12...
Nxe5 {[%clk 0:01:42.4]} 13. Bxe5 {[%clk 0:01:55.8]} 13... e6 {[%clk 0:01:41.2]}
14. Qf3 {[%clk 0:01:46.8]} 14... Nd5 {[%clk 0:01:30.2]} 15. Nxd5 {[%clk
0:01:45.9]} 15... exd5 {[%clk 0:01:13.8]} 16. Rfe1 {[%clk 0:01:37.4]} 16... Be4
{[%clk 0:01:13.6]} 17. Rxe4 {[%clk 0:01:37.1]} 17... dxe4 {[%clk 0:01:12.6]} 18.
Qxe4 {[%clk 0:01:38]} 18... c6 {[%clk 0:01:13.3]} 19. Rd1 {[%clk 0:01:26.5]}
19... f6 {[%clk 0:01:14.4]} 20. Bg3 {[%clk 0:01:22.2]} 20... Bd6 {[%clk
0:01:15.1]} 21. Bxd6 {[%clk 0:01:12.7]} 21... Qxd6 {[%clk 0:01:15.9]} 22. d5
{[%clk 0:01:13.8]} 22... cxd5 {[%clk 0:00:56.5]} 23. Qf5+ {[%clk 0:01:11.5]}
23... Qd7 {[%clk 0:00:53.3]} 24. Qf4 {[%clk 0:01:04.8]} 24... Qc6 {[%clk
0:00:28.4]} 25. c4 {[%clk 0:01:01.1]} 25... Qxc4 {[%clk 0:00:26.3]} 26. Rc1
{[%clk 0:01:01.3]} 26... Qxc1+ {[%clk 0:00:19.2]} 27. Qxc1+ {[%clk 0:01:00.7]}
27... Kb8 {[%clk 0:00:20.8]} 28. Qf4+ {[%clk 0:01:00.6]} 28... Ka7 {[%clk
0:00:20.2]} 29. Qc7 {[%clk 0:01:00.8]} 29... g6 {[%clk 0:00:12]} 30. Qc5+ {[%clk
0:01:00.6]} 30... Kb8 {[%clk 0:00:09.7]} 31. Bxd5 {[%clk 0:01:01.2]} 31... Rhe8
{[%clk 0:00:10.6]} 32. Bf3 {[%clk 0:00:59.5]} 32... Re5 {[%clk 0:00:11.4]} 33.
Qb6 {[%clk 0:00:59.9]} 33... Rd7 {[%clk 0:00:12.6]} 34. Qxf6 {[%clk 0:01:00.3]}
34... Rde7 {[%clk 0:00:11.9]} 35. Qd6+ {[%clk 0:01:00.4]} 35... Ka7 {[%clk
0:00:12.3]} 36. Qd4+ {[%clk 0:01:00.2]} 36... Kb8 {[%clk 0:00:12.7]} 37. a4
{[%clk 0:01:01]} 37... Re1+ {[%clk 0:00:12.2]} 38. Kg2 {[%clk 0:01:01.5]} 38...
R1e5 {[%clk 0:00:14.1]} 39. b4 {[%clk 0:01:02]} 39... h5 {[%clk 0:00:15.3]} 40.
Qd6+ {[%clk 0:01:00.6]} 40... Ka7 {[%clk 0:00:15.6]} 41. a5 {[%clk 0:01:01.1]}
41... R5e6 {[%clk 0:00:14.7]} 42. Qc5+ {[%clk 0:01:01.5]} 42... Kb8 {[%clk
0:00:15.6]} 43. b5 {[%clk 0:01:02.6]} 43... axb5 {[%clk 0:00:15.8]} 44. Qxb5
{[%clk 0:01:03.5]} 44... hxg4 {[%clk 0:00:16.9]} 45. hxg4 {[%clk 0:01:03.5]}
45... Re5 {[%clk 0:00:18.1]} 46. Qb4 {[%clk 0:01:02.1]} 46... R7e6 {[%clk
0:00:16.6]} 47. Qxb7# {[%clk 0:01:01.7]} 1-0

[Event "*** Qualifier 1: Titled Tuesday 3|2 Blitz"]
[Site "Chess.com"]
[Date "2017.04.04"]
[Round "3"]
[White "Grebeniuk-S"]
[Black "superjem123"]
[Result "0-1"]
[WhiteElo "2421"]
[BlackElo "2509"]
[TimeControl "180+2"]
[EndTime "13:38:23 PDT"]
[Termination "superjem123 won by resignation"]

1. e4 {[%clk 0:03:02]} 1... e5 {[%clk 0:03:00.3]} 2. Nc3 {[%clk 0:03:00.5]} 2...
Nc6 {[%clk 0:03:00.5]} 3. f4 {[%clk 0:02:59.9]} 3... Bc5 {[%clk 0:02:55.9]} 4.
Nf3 {[%clk 0:02:58.6]} 4... d6 {[%clk 0:02:53.8]} 5. Bc4 {[%clk 0:02:57.7]} 5...
Nf6 {[%clk 0:02:54.1]} 6. d3 {[%clk 0:02:56.5]} 6... Bg4 {[%clk 0:02:40.7]} 7.
h3 {[%clk 0:02:57.2]} 7... Bxf3 {[%clk 0:02:39.6]} 8. Qxf3 {[%clk 0:02:58.9]}
8... Nd4 {[%clk 0:02:40.1]} 9. Qg3 {[%clk 0:02:57.4]} 9... Qe7 {[%clk
0:01:01.6]} 10. Kd1 {[%clk 0:02:19]} 10... exf4 {[%clk 0:00:34.1]} 11. Qxf4
{[%clk 0:02:03.8]} 11... O-O-O {[%clk 0:00:33.8]} 12. Rf1 {[%clk 0:01:59.9]}
12... d5 {[%clk 0:00:28.1]} 13. exd5 {[%clk 0:01:30.7]} 13... Nxd5 {[%clk
0:00:20.8]} 14. Qg4+ {[%clk 0:00:45.8]} 14... f5 {[%clk 0:00:21.2]} 15. Rxf5
{[%clk 0:00:44.1]} 15... Nxc3+ {[%clk 0:00:21.5]} 16. bxc3 {[%clk 0:00:39.4]}
16... Nxf5 {[%clk 0:00:20.5]} 17. Qxf5+ {[%clk 0:00:41.3]} 17... Kb8 {[%clk
0:00:21.5]} 18. Bg5 {[%clk 0:00:41.2]} 18... Qf8 {[%clk 0:00:21.6]} 19. Qxf8
{[%clk 0:00:17.8]} 19... Rdxf8 {[%clk 0:00:23.5]} 20. d4 {[%clk 0:00:19.7]}
20... Bd6 {[%clk 0:00:22.5]} 21. Be3 {[%clk 0:00:20.8]} 21... Re8 {[%clk
0:00:21.5]} 22. Kd2 {[%clk 0:00:21.2]} 22... Rhf8 {[%clk 0:00:23.1]} 23. Re1
{[%clk 0:00:19.7]} 23... Bg3 {[%clk 0:00:20.8]} 24. Re2 {[%clk 0:00:20.9]} 24...
Bf4 {[%clk 0:00:20.4]} 25. Bxf4 {[%clk 0:00:20.6]} 25... Rxe2+ {[%clk
0:00:22.3]} 26. Kxe2 {[%clk 0:00:21.4]} 26... Rxf4 {[%clk 0:00:24.2]} 27. Bd3
{[%clk 0:00:23.1]} 27... h6 {[%clk 0:00:24.5]} 28. g3 {[%clk 0:00:24.2]} 28...
Rf6 {[%clk 0:00:25.6]} 29. Ke3 {[%clk 0:00:23.7]} 29... c6 {[%clk 0:00:26.4]}
30. g4 {[%clk 0:00:24.3]} 30... g5 {[%clk 0:00:24.5]} 31. Bf5 {[%clk 0:00:24.2]}
31... Kc7 {[%clk 0:00:25.9]} 32. Ke4 {[%clk 0:00:25.2]} 32... Kd6 {[%clk
0:00:24.3]} 33. c4 {[%clk 0:00:26.4]} 33... b6 {[%clk 0:00:25.7]} 34. a4 {[%clk
0:00:26.8]} 34... Rf7 {[%clk 0:00:25.1]} 35. d5 {[%clk 0:00:22.6]} 35... Re7+
{[%clk 0:00:24.5]} 36. Be6 {[%clk 0:00:22.3]} 36... a5 {[%clk 0:00:18.8]} 37.
Kf5 {[%clk 0:00:22.5]} 37... b5 {[%clk 0:00:17.6]} 38. cxb5 {[%clk 0:00:07.3]}
38... cxb5 {[%clk 0:00:18.7]} 39. axb5 {[%clk 0:00:07]} 39... a4 {[%clk
0:00:20.6]} 40. c4 {[%clk 0:00:08.4]} 40... Rc7 {[%clk 0:00:21.2]} 41. b6 {[%clk
0:00:07.1]} 41... Rxc4 {[%clk 0:00:22.2]} 42. b7 {[%clk 0:00:07.2]} 42... Rb4
{[%clk 0:00:22.9]} 43. Kg6 {[%clk 0:00:07.7]} 43... a3 {[%clk 0:00:23.6]} 44.
Kxh6 {[%clk 0:00:08.2]} 44... a2 {[%clk 0:00:25]} 0-1